Workbook

Sheet ресур. обесп.
L1: Приложение 2
K2: к Отчету о реализации Программы
C4: Отчет об исполнении мероприятий муниципальной программы города Усолье-Сибирское
C5: "Развитие жилищно-коммунального хозяйства" на 2019-2027 годы за 2025 год
B7: № п/п | C7: Наименование муниципальной программы, подпрограммы, основного мероприятия, мероприятия, проекта | D7: Участники муниципальной программы | E7: Источник финансирования | F7: Объем финансирования, предусмотренный на 2025 год, руб. | G7: Профинансировано за 2025 год, руб. | H7: Процент исполнения (гр 6/гр 5*100) % | I7: Наименование показателя объема мероприятия, единица измерения | J7: Плановое значение показателя мероприятия на 2025 год | K7: Фактическое значение показателя мероприятия за 2025 год | L7: Обоснование причин отклонения (при наличии)
B8: 1 | C8: 2 | D8: 3 | E8: 4 | F8: 5 | G8: 6 | H8: 7 | I8: 8 | J8: 9 | K8: 10 | L8: 11
B9: Муниципальная программа города Усолье-Сибирское «Развитие жилищно-коммунального хозяйства» на 2019 – 2027 годы | E9: Всего | F9: =F10+F11+F12+F13 -> 437,265,655.70 | G9: =G10+G11+G12+G13 -> 240,112,825.86 | H9: =G9/F9*100 -> 54.91 | I9: * | J9: * | K9: * | L9: *
E10: =$E$17 -> местный бюджет | F10: =F15+F19+F23+F36+F48+F58 -> 186,567,558.75 | G10: =G15+G19+G23+G36+G48+G58 -> 165,909,516.95 | H10: 88.93 | I10: * | J10: * | K10: * | L10: *
E11: областной бюджет | F11: =F24+F37+F59 -> 240,202,096.95 | G11: =G24+G37+G59 -> 63,732,709.85 | H11: =G11/F11*100 -> 26.53 | I11: * | J11: * | K11: * | L11: *
E12: федеральный бюджет | F12: =F60 -> 9,500,000.00 | G12: =G60 -> 9,499,967.15 | H12: =G12/F12*100 -> 100.00 | I12: * | J12: * | K12: * | L12: *
E13: целевые средства | F13: =F61+F25 -> 996,000.00 | G13: =G61+G25 -> 970,631.91 | H13: =G13/F13*100 -> 97.45 | I13: * | J13: * | K13: * | L13: *
B14: 1. | C14: Подпрограмма № 1 «Капитальный ремонт общего имущества в многоквартирных домах, расположенных на территории города Усолье-Сибирское» на 2019-2027 годы, в том числе: | E14: Всего | F14: =F15 -> 6,727,186.19 | G14: =G15 -> 6,727,186.19 | H14: =G14/F14*100 -> 100.00 | I14: * | J14: * | K14: * | L14: *
E15: местный бюджет | F15: =F16+F17 -> 6,727,186.19 | G15: =G16+G17 -> 6,727,186.19 | H15: 100.00 | I15: * | J15: * | K15: * | L15: *
B16: 1.1. | C16: Основное мероприятие 1.1. Обеспечение мероприятий по капитальному ремонту многоквартирных домов города, включенных в Региональную программу капитального ремонта общего имущества в многоквартирных домах на территории Иркутской области на 2014-2043 годы. | D16: Отдел по управлению жилищным фондом комитета по городскому хозяйству администрации города Усолье-Сибирское | E16: местный бюджет | F16: 200,000.00 | G16: 200,000.00 | H16: 100.00 | I16: 1. Количество многоквартирных домов, в которых проведен капитальный ремонт общего имущества (объектов); 2. Общая площадь многоквартирных домов, в которых проведен капитальный ремонт общего имущества (м2) | J16: 22 | K16: 22
B17: 1.2. | C17: Основное мероприятие 1.2. Своевременная ежемесячная оплата взносов на капитальный ремонт многоквартирных домов в доле муниципальных жилых и нежилых помещений Региональному оператору | D17: Отдел по управлению жилищным фондом комитета по городскому хозяйству администрации города Усолье-Сибирское | E17: местный бюджет | F17: 6,527,186.19 | G17: 6,527,186.19 | H17: 100.00 | J17: 77,011.73 | K17: 77,011.73
B18: 2. | C18: Подпрограмма № 2 «Капитальный и текущий ремонт муниципального жилищного фонда города Усолье – Сибирское» на 2019-2027 годы | E18: Всего | F18: =F19 -> 5,733,062.36 | G18: =G19 -> 5,733,062.36 | H18: 100.00 | I18: * | J18: * | K18: * | L18: *
E19: местный бюджет | F19: =F20 -> 5,733,062.36 | G19: =G20 -> 5,733,062.36 | H19: =G19/F19*100 -> 100.00 | I19: * | J19: * | K19: * | L19: *
B20: 2.1. | C20: Основное мероприятие 2.1. Капитальный и текущий ремонт помещений муниципального жилищного фонда. | D20: Отдел по управлению жилищным фондом комитета по городскому хозяйству администрации города Усолье-Сибирское | E20: местный бюджет | F20: 5,733,062.36 | G20: 5,733,062.36 | H20: =G20/F20*100 -> 100.00 | I20: Количество муниципальных жилых помещений, в которых проведен капитальный и текущий ремонт (шт.) | J20: 15 | K20: 15
I21: Общая площадь помещений многоквартирных домов муниципального жилищного фонда, в которых проведен капитальный и текущий ремонт (м2) | J21: 540.90 | K21: 540.90
B22: 3. | C22: Подпрограмма № 3 "Развитие дорожного хозяйства города Усолье-Сибирское" на 2019-2027 годы | E22: всего | F22: =F23+F24+F25 -> 349,319,585.58 | G22: =G23+G24+G25 -> 152,187,131.10 | H22: =G22/F22*100 -> 43.57 | I22: * | J22: * | K22: * | L22: *
E23: =$E$17 -> местный бюджет | F23: =F26+F27+F28+F33 -> 124,381,613.62 | G23: =G26+G27+G28+G33 -> 103,723,576.53 | H23: 83.39
E24: областной бюджет | F24: =F31+F34 -> 224,437,971.96 | G24: =G31+G34 -> 47,968,586.58 | H24: 21.37
E25: целевые средства | F25: =F30 -> 500,000.00 | G25: =G30 -> 494,967.99 | H25: 98.99
B26: 3.1. | C26: Основное мероприятие 3.1. Содержание и ремонт дорог местного значения | D26: Отдел по благоустройству и экологии комитета по городскому хозяйству администрации города Усолье-Сибирское | E26: =$E$17 -> местный бюджет | F26: 96,771,996.24 | G26: 96,771,996.24 | H26: =G26/F26*100 -> 100.00 | I26: Протяженность содержания дорог местного значения (км) | J26: 97 | K26: 98.29
B27: 3.2 | C27: Основное мероприятие 3.5. Проведение экспертизы (государственной/негосударственной) | D27: ГУКС | E27: местный бюджет | F27: 393,656.14 | G27: 393,656.14 | H27: =G27/F27*100 -> 100.00 | I27: Количество заключенных муниципальных контрактов на проведение экспертиз (государственных/негосударственных) (ед.) | J27: 1 | K27: 1
B28: 3.3 | C28: Основное мероприятие 3.12. Восстановление, прокладка и содержание ливневой канализации | D28: Отдел по благоустройству и экологии комитета по городскому хозяйству администрации города Усолье-Сибирское | E28: местный бюджет | F28: 1,045,000.00 | G28: 1,045,000.00 | H28: =G28/F28*100 -> 100.00 | I28: Количество участков автомобильных дорог, на которых выполнено восстановление и прокладка ливневой канализации (ед.) | J28: 1 | K28: 1
B29: 3.4 | C29: Основное мероприятие 3.13. «Безопасная дорога ул. Индустриальная от Р 255 до КПП №5 ТЭЦ-11»" | D29: Отдел по благоустройству и экологии комитета по городскому хозяйству администрации города Усолье-Сибирское | E29: Всего | F29: =F30+F31 -> 2,479,871.96 | G29: =G30+G31 -> 2,474,839.95 | H29: =G29/F29*100 -> 99.80 | I29: Протяженность отремонтированных автомобильных дорог общего пользования местного значения (км) | J29: 2.7 | K29: =2.1115+0.5 -> 2.6115 | L29: Отклонение в финансировании составило 5 032,01 руб. - экономия по результатам заключенных муниципальных контрактов
E30: целевые средства | F30: 500,000.00 | G30: 494,967.99 | H30: 98.99
E31: областной бюджет | F31: 1,979,871.96 | G31: 1,979,871.96 | H31: 100.00
B32: 3.5 | C32: Основное мероприятие 3.14. «Развитие и приведение в нормативное состояние автомобильных дорог общего пользования местного значения, включающих искусственные дорожные сооружения, в рамках национального проекта «Инфраструктура для жизни» | D32: Отдел по благоустройству и экологии комитета по городскому хозяйству администрации города Усолье-Сибирское, ГУКС | E32: Всего | F32: =F33+F34 -> 248,629,061.24 | G32: =G33+G34 -> 51,501,638.77 | H32: 20.71 | L32: Отклонение в финансировании составило всего 197 127 422,47 руб. (в т.ч. 176 469 385,38 руб. - за счет ср-в субсидии и 20 658 037,09 руб. - за ср-в местного бюджета), из них: - 178 444 391,15 руб. (в т.ч. 159 343 049,56 руб. - за счет ср-в субсидии и 19 101 341,59 руб. - за ср-в местного бюджета) - кредиторская задолженность; - 18 683 031,32 - экономия по результатам принятых работ по заключенным контрактам.
E33: местный бюджет | F33: 26,170,961.24 | G33: 5,512,924.15 | H33: =G33/F33*100 -> 21.07
E34: областной бюджет | F34: 222,458,100.00 | G34: 45,988,714.62 | H34: =G34/F34*100 -> 20.67
B35: 4. | C35: Подпрограмма № 4 «Организация освещения улиц на территории города Усолье-Сибирское» на 2019-2027 годы | E35: Всего | F35: =F36+F37 -> 33,332,331.01 | G35: =G36+G37 -> 33,332,330.99 | H35: =G35/F35*100-0.01 -> 99.99 | I35: * | J35: * | K35: * | L35: *
E36: =$E$17 -> местный бюджет | F36: =F39+F43+F45 -> 32,149,055.37 | G36: =G39+G43+G45 -> 32,149,055.35 | H36: =G36/F36*100-0.01 -> 99.99
E37: областной бюджет | F37: =F46 -> 1,183,275.64 | G37: =G46 -> 1,183,275.64 | H37: =G37/F37*100 -> 100.00
B38: 4.1. | C38: Основное мероприятие 4.1. Содержание наружного освещения города Усолье – Сибирское. | D38: Отдел по жизнеобеспечению города комитета по городскому хозяйству администрации города Усолье-Сибирское | E38: Всего | F38: =F39 -> 31,832,737.41 | G38: =G39 -> 31,832,737.41 | H38: =G38/F38*100 -> 100.00 | I38: Протяженность линий наружного освещения территории города (км) | J38: 82.576 | K38: 82.576 | L38: *
E39: =$E$17 -> местный бюджет | F39: =F40+F41+F42 -> 31,832,737.41 | G39: =G40+G41+G42 -> 31,832,737.41 | H39: 100.00
B40: 4.1.1 | C40: 4.1.1. Расчет за потребленную электроэнергию | D40: Отдел по жизнеобеспечению города комитета по городскому хозяйству администрации города Усолье-Сибирское | E40: =$E$17 -> местный бюджет | F40: 14,766,208.18 | G40: 14,766,208.18 | H40: =G40/F40*100 -> 100.00 | I40: Значение целевого показателя по данному мероприятию относится к основному мероприятию 4.1. "Содержание наружного освещения города Усолье – Сибирское". | J40: * | K40: *
B41: 4.1.2. | C41: 4.1.2. Обслуживание наружного освещения города Усолье-Сибирское | D41: Отдел по жизнеобеспечению города комитета по городскому хозяйству администрации города Усолье-Сибирское | E41: =$E$17 -> местный бюджет | F41: 16,239,171.26 | G41: 16,239,171.26 | H41: 100.00 | J41: * | K41: *
B42: 4.1.3. | C42: 4.1.3. Восстановление и устройство наружного освещения города Усолье-Сибирское | D42: Отдел по жизнеобеспечению города комитета по городскому хозяйству администрации города Усолье-Сибирское | E42: =$E$17 -> местный бюджет | F42: 827,357.97 | G42: 827,357.97 | H42: =G42/F42*100 -> 100.00 | J42: * | K42: *
B43: 4.2. | C43: Основное мероприятие 4.4. Организация уличного освещения | D43: Отдел по жизнеобеспечению города комитета по городскому хозяйству администрации города Усолье-Сибирское | E43: местный бюджет | F43: 199,290.64 | G43: 199,290.64 | H43: 100.00 | J43: * | K43: *
B44: 4.3. | C44: Основное мероприятие 4.7 Организация уличного освещения (ул. Желябова; проход до ж/д перехода (ул. Ломоносова, ул. Тимирязева); от ул. Восточная до ул. Российская; ул. Уватова) | D44: Отдел по жизнеобеспечению города комитета по городскому хозяйству администрации города Усолье-Сибирское | E44: Всего | F44: =F45+F46 -> 1,300,302.96 | G44: =G45+G46 -> 1,300,302.94 | H44: =G44/F44*100-0.01 -> 99.99 | J44: * | K44: * | L44: Отклонение в финансировании составило 0,02 руб. - экономия по результатам заключенных муниципальных контрактов
E45: местный бюджет | F45: 117,027.32 | G45: 117,027.30 | H45: =G45/F45*100-0.01 -> 99.99
E46: областной бюджет | F46: 1,183,275.64 | G46: 1,183,275.64 | H46: 100.00
B47: 5. | C47: Подпрограмма № 5 «Энергосбережение и повышение энергетической эффективности города Усолье-Сибирское» на 2019-2027 годы | E47: Всего | F47: =F48 -> 257,968.00 | G47: =G48 -> 257,966.74 | H47: =G47/F47*100-0.01 -> 99.99 | I47: * | J47: * | K47: * | L47: *
E48: местный бюджет | F48: =F50+F53+F54 -> 257,968.00 | G48: =G50+G53+G54 -> 257,966.74 | H48: =G48/F48*100-0.01 -> 99.99
B49: 5.1. | C49: Основное мероприятие 5.1. Установка общедомовых приборов учета энергоресурсов в городе Усолье-Сибирское и установка индивидуальных квартирных приборов учета в муниципальном жилищном фонде | D49: Отдел по жизнеобеспечению города комитета по городскому хозяйству администрации города Усолье-Сибирское | E49: Всего | F49: =F50 -> 57,968.00 | G49: =G50 -> 57,968.00 | H49: =G49/F49*100 -> 100.00 | I49: Доля объемов электроэнергии, расчеты за которую осуществляются с использованием приборов учета (индивидуальных и общедомовых), в общем объеме электроэнергии, потребляемой многоквартирными домами в доле муниципальных жилых помещений, муниципального жилого фонда и муниципального специализированного фонда (%) | J49: 100 | K49: 100 | L49: *
E50: местный бюджет | F50: =F52 -> 57,968.00 | G50: =G52 -> 57,968.00 | H50: 100.00 | I50: Доля объемов тепловой энергии, расчеты за которую осуществляются с использованием приборов учета (индивидуальных и обще-домовых), в общем объеме тепловой энергии, потребляемой многоквартирными домами в доле муниципальных жилых помещений, муниципального жилого фонда и муниципального специализированного фонда (%) | J50: 100 | K50: 100 | L50: *
I51: Доля объемов воды, расчеты за которую осуществляются с использованием приборов учета (индивидуальных и общедомовых), в общем объеме воды, потребляемой многоквартирными домами в доле муниципальных жилых помещений, муниципального жилого фонда и муниципального специализированного фонда (%) | J51: 100 | K51: 100 | L51: *
B52: 5.1.1 | C52: 5.1.2. Установка индивидуальных квартирных приборов учета энергоресурсов в муниципальном жилищном фонде города Усолье-Сибирское | D52: Отдел по жизнеобеспечению города комитета по городскому хозяйству администрации города Усолье-Сибирское | E52: местный бюджет | F52: 57,968.00 | G52: 57,968.00 | H52: =G52/F52*100 -> 100.00 | I52: * | J52: * | K52: *
B53: 5.2. | C53: Основное мероприятие 5.2. Актуализация и разработка схем теплоснабжения, водоснабжения, водоотведения и ливневой канализации города Усолье-Сибирское. | D53: Отдел по жизнеобеспечению города комитета по городскому хозяйству администрации города Усолье-Сибирское | E53: местный бюджет | F53: 0.00 | G53: 0.00 | H53: 0.00 | I53: Количество актуализированных и разработанных схем теплоснабжения, водоснабжения, водоотведения и ливневой канализации города Усолье-Сибирское (шт.) | J53: 1 | K53: 0
B54: 5.3. | C54: Основное мероприятие 5.3. Проведение технических мероприятий в бюджетной сфере города Усолье-Сибирское по реконструкции и капитальному ремонту ограждающих конструкций, оконных и дверных проемов, систем теплоснабжения, энергоснабжения, водоснабжения и водоотведения. | D54: Отдел по жизнеобеспечению города комитета по городскому хозяйству администрации города Усолье-Сибирское, Муниципальные бюджетные учреждения города | E54: местный бюджет | F54: 200,000.00 | G54: 199,998.74 | H54: 99.99 | I54: Экономия потребления муниципальными бюджетными учреждениями электроэнергии в натуральном выражении (тыс. кВт) | J54: 16,300 | K54: 16,300 | L54: Отклонение в финансировании составило 1,26 руб. - экономия по результатам заключенных муниципальных контрактов
I55: Экономия потребления муниципальными бюджетными учреждениями тепловой энергии в натуральном выражении (Гкал) | J55: 190 | K55: 190
I56: Экономия потребления муниципальными бюджетными учреждениями питьевой воды в натуральном выражении (м³) | J56: 400 | K56: 400
B57: 6 | C57: Подпрограмма № 6 "Благоустройство территории города Усолье-Сибирское" на 2019-2027 годы | E57: Всего | F57: =F58+F59+F60+F61 -> 41,895,522.56 | G57: =G58+G59+G60+G61 -> 41,875,148.48 | H57: =G57/F57*100 -> 99.95 | I57: * | J57: * | K57: * | L57: *
E58: местный бюджет | F58: =F63+F65+F66+F67+F81+F84+F87+F90+F93+F96 -> 17,318,673.21 | G58: =G63+G65+G66+G67+G81+G84+G87+G90+G93+G96 -> 17,318,669.78 | H58: =G58/F58*100 -> 100.00
E59: областной бюджет | F59: =F73+F76+F79+F82+F85+F88+F91+F94+F97 -> 14,580,849.35 | G59: =G73+G76+G79+G82+G85+G88+G91+G94+G97 -> 14,580,847.63 | H59: 100.00
E60: федеральный бюджет | F60: =F98 -> 9,500,000.00 | G60: =G98 -> 9,499,967.15 | H60: 100.00
E61: целевые средства | F61: =F72+F75+F78 -> 496,000.00 | G61: =G72+G75+G78 -> 475,663.92 | H61: 95.90
B62: 6.1. | C62: Основное мероприятие 6.2. Содержание городского мемориала памяти и памятников в городе Усолье-Сибирское. | D62: Отдел по жизнеобеспечению города комитета по городскому хозяйству администрации города Усолье-Сибирское | E62: Всего | F62: =F63 -> 1,523,305.90 | G62: =G63 -> 1,523,305.90 | H62: =G62/F62*100 -> 100.00 | I62: Содержание городского мемориала памяти и памятников в городе Усолье-Сибирское (ед.) | J62: 1 | K62: 1 | L62: *
E63: местный бюджет | F63: =F64 -> 1,523,305.90 | G63: =G64 -> 1,523,305.90 | H63: =G63/F63*100 -> 100.00
B64: 6.1.1 | C64: 6.2.1. Техническое обслуживание газового оборудования и поставка газа. | D64: Отдел по жизнеобеспечению города комитета по городскому хозяйству администрации города Усолье-Сибирское | E64: местный бюджет | F64: 1,523,305.90 | G64: 1,523,305.90 | H64: =G64/F64*100 -> 100.00 | I64: * | J64: * | K64: *
B65: 6.2. | C65: Основное мероприятие 6.5. Содержание и ремонт детского игрового и спортивного оборудования, и иных малых архитектурных форм | D65: Отдел по благоустройству и экологии комитета по городскому хозяйству администрации города Усолье-Сибирское | E65: местный бюджет | F65: 1,143,363.69 | G65: 1,143,363.69 | H65: =G65/F65*100 -> 100.00 | I65: Доля отремонтированного детского игрового и спортивного оборудования, и иных малых архитектурных форм от выявленного количества (объема) необходимых для ремонта детского игрового и спортивного оборудования, и иных малых архитектурных форм (%) | J65: 100 | K65: 100
B66: 6.3. | C66: Основное мероприятие 6.6. Проведение экспертизы (государственной/негосударственной) | D66: Отдел по благоустройству и экологии комитета по городскому хозяйству администрации города Усолье-Сибирское | E66: местный бюджет | F66: 76,800.00 | G66: 76,800.00 | H66: 100.00 | I66: Количество проведенных экспертиз (государственных/негосударственных) (ед.) | J66: 1 | K66: 2
B67: 6.4. | C67: Основное мероприятие 6.18. Содержание общественных территорий (парки, скверы и т.д.) | D67: Отдел по благоустройству и экологии комитета по городскому хозяйству администрации города Усолье-Сибирское | E67: Всего | F67: =F68 -> 12,600,494.98 | G67: =G68 -> 12,600,494.98 | H67: =G67/F67*100 -> 100.00 | I67: Доля общественных территорий (парков, скверов и т.д.), содержание которых выполнено от, выявленного количества (объема) необходимых для содержания общественных территорий (парков, скверов и т.д.). (%) | J67: 100 | K67: 100 | L67: *
E68: местный бюджет | F68: =F69+F70 -> 12,600,494.98 | G68: =G69+G70 -> 12,600,494.98 | H68: =G68/F68*100 -> 100.00
B69: 6.4.1. | C69: 6.18.1. Содержание общественных территорий (зимнее/летнее) | D69: Отдел по благоустройству и экологии комитета по городскому хозяйству администрации города Усолье-Сибирское | E69: местный бюджет | F69: 11,314,494.98 | G69: 11,314,494.98 | H69: =G69/F69*100 -> 100.00 | I69: * | J69: * | K69: *
B70: 6.4.2. | C70: 6.18.2. Установка и техническое обслуживание систем видеонаблюдения | D70: Отдел по благоустройству и экологии комитета по городскому хозяйству администрации города Усолье-Сибирское | E70: местный бюджет | F70: 1,286,000.00 | G70: 1,286,000.00 | H70: =G70/F70*100 -> 100.00 | I70: * | J70: * | K70: *
B71: 6.5. | C71: Основное мероприятие 6.36. «Благоустройство территории в районе многоквартирных жилых домов №№ 58, 60 по пр-кту Ленинский г. Усолье-Сибирское» | D71: Отдел по благоустройству и экологии комитета по городскому хозяйству администрации города Усолье-Сибирское | E71: Всего | F71: =F72+F73 -> 1,672,666.21 | G71: =G72+G73 -> 1,662,962.45 | H71: =G71/F71*100 -> 99.42 | I71: Количество инициативных проектов, реализуемых на территории муници-пального образования «город Усолье-Сибирское» (ед.) | J71: 3 | K71: 3 | L71: Отклонение в финансировании составило 9 703,76 руб. - экономия по результатам заключенных муниципальных контрактов
E72: целевые средства | F72: 176,000.00 | G72: 166,296.24 | H72: 94.49
E73: областной бюджет | F73: 1,496,666.21 | G73: 1,496,666.21 | H73: 100.00
B74: 6.6. | C74: Основное мероприятие 6.37. «Благоустройство дворовой территории жилых домов № 35, 29, 32, 34 по пр-кту Химиков» | D74: Отдел по благоустройству и экологии комитета по городскому хозяйству администрации города Усолье-Сибирское | E74: Всего | F74: =F75+F76 -> 1,200,000.00 | G74: =G75+G76 -> 1,200,000.00 | H74: 100.00
E75: целевые средства | F75: 120,000.00 | G75: 120,000.00 | H75: 100.00
E76: областной бюджет | F76: 1,080,000.00 | G76: 1,080,000.00 | H76: 100.00
B77: 6.7. | C77: Основное мероприятие 6.38. «Благоустройство территории в районе ж/д перехода на перекрестке ул. Буйволовой и ул. Жуковского» | D77: Отдел по благоустройству и экологии комитета по городскому хозяйству администрации города Усолье-Сибирское | E77: Всего | F77: =F78+F79 -> 1,904,309.11 | G77: =G78+G79 -> 1,893,676.79 | H77: 99.44 | L77: Отклонение в финансировании составило 10 632,32 руб. - экономия по результатам заключенных муниципальных контрактов
E78: целевые средства | F78: 200,000.00 | G78: 189,367.68 | H78: 94.68
E79: областной бюджет | F79: 1,704,309.11 | G79: 1,704,309.11 | H79: 100.00
B80: 6.8. | C80: Основное мероприятие 6.39 Обустройство футбольного поля по ул. Толбухина, 5 | D80: Отдел по благоустройству и экологии комитета по городскому хозяйству администрации города Усолье-Сибирское | E80: Всего | F80: =F81+F82 -> 1,300,517.50 | G80: =G81+G82 -> 1,300,517.50 | H80: =G80/F80*100 -> 100.00 | I80: Количество обустроенных футбольных полей, кортов (ед.) | J80: 1 | K80: 1
E81: местный бюджет | F81: 117,046.61 | G81: 117,046.61 | H81: 100.00
E82: областной бюджет | F82: 1,183,470.89 | G82: 1,183,470.89 | H82: 100.00
B83: 6.9. | C83: Основное мероприятие 6.40 Устройство пешеходной дорожки вдоль дома № 76 по ул. Молотовая и дома № 89 по ул. Интернациональная | D83: Отдел по благоустройству и экологии комитета по городскому хозяйству администрации города Усолье-Сибирское | E83: Всего | F83: =F84+F85 -> 1,038,011.28 | G83: =G84+G85 -> 1,038,011.28 | H83: 100.00 | I83: Площадь обустроенных пешеходных дорожек (м2) | J83: 1113 | K83: 1113
E84: местный бюджет | F84: 93,421.05 | G84: 93,421.05 | H84: 100.00
E85: областной бюджет | F85: 944,590.23 | G85: 944,590.23 | H85: =G85/F85*100 -> 100.00
B86: 6.10. | C86: Основное мероприятие 6.41 Устройство пешеходной дорожки от перекрестка ул. Попова по ул. Жуковского до перекрестка с ул. Энергетиков | D86: Отдел по благоустройству и экологии комитета по городскому хозяйству администрации города Усолье-Сибирское | E86: Всего | F86: =F87+F88 -> 3,320,000.00 | G86: =G87+G88 -> 3,320,000.00 | H86: 100.00
E87: местный бюджет | F87: 298,800.10 | G87: 298,800.10 | H87: 100.00
E88: областной бюджет | F88: 3,021,199.90 | G88: 3,021,199.90 | H88: 100.00
B89: 6.11. | C89: Основное мероприятие 6.42 Благоустройство соляного источника на о. Варничный | D89: Отдел по благоустройству и экологии комитета по городскому хозяйству администрации города Усолье-Сибирское | E89: Всего | F89: =F90+F91 -> 3,253,174.88 | G89: =G90+G91 -> 3,253,174.88 | H89: =G89/F89*100 -> 100.00 | I89: Количество благоустроенных территорий (ед.) | J89: 1 | K89: 1
E90: местный бюджет | F90: 292,785.83 | G90: 292,785.83 | H90: 100.00
E91: областной бюджет | F91: 2,960,389.05 | G91: 2,960,389.05 | H91: 100.00
B92: 6.12. | C92: Основное мероприятие 6.43 Приобретение и установка стелы на въезде в город | D92: Отдел по благоустройству и экологии комитета по городскому хозяйству администрации города Усолье-Сибирское | E92: Всего | F92: =F93+F94 -> 1,857,389.03 | G92: =G93+G94 -> 1,857,389.03 | H92: 100.00 | I92: Количество приобретенных и(или) установленныз стел, памятников, объектов архитектуры (ед.) | J92: 1 | K92: 1
E93: местный бюджет | F93: 167,165.07 | G93: 167,165.07 | H93: 100.00
E94: областной бюджет | F94: 1,690,223.96 | G94: 1,690,223.96 | H94: 100.00
B95: 6.13. | C95: Основное мероприятие 6.44. «Реализация мероприятий проекта "Концепция туристического центра города Усолье-Сибирское» | D95: Отдел по благоустройству и экологии комитета по городскому хозяйству администрации города Усолье-Сибирское | E95: Всего | F95: =F96+F98+F97 -> 11,005,489.98 | G95: =G96+G98+G97 -> 11,005,451.98 | H95: =G95/F95*100-0.01 -> 99.99 | I95: Количество мероприятий проекта "Концепция туристического центра города Усолье-Сибирское" (ед.) | J95: 13 | K95: 13 | L95: Отклонение в финансировании составило 38,00 руб. - экономия по результатам заключенных муниципальных контрактов
E96: местный бюджет | F96: =1000569.98+4920 -> 1,005,489.98 | G96: =1000566.55+4920 -> 1,005,486.55 | H96: =G96/F96*100-0.01 -> 99.99
E97: областной бюджет | F97: 500,000.00 | G97: 499,998.28 | H97: =G97/F97*100-0.01 -> 99.99
E98: федеральный бюджет | F98: 9,500,000.00 | G98: 9,499,967.15 | H98: =G98/F98*100-0.01 -> 99.99
B101: Мэр города Усолье-Сибирское | I101: М.В. Торопкин
